bitfinex/quotes_SOLUSD_20260304
["timestamp","ask_amount","ask_price","bid_price","bid_amount"]
[1772613523711,40.00182865,87.496,87.451,28.58743753]
[1772613523712,1.97234308,87.489,87.451,0.28432314]
[1772613523891,1.97234308,87.489,87.442,11.43615196]
[1772613524214,1.97234308,87.489,87.46,1.80609555]
[1772613525113,1.97234308,87.489,87.47,1.80609555]
[1772613525711,1.97234308,87.5,87.471,0.02374798]
[1772613525913,1.97234308,87.5,87.48,1.80609555]
[1772613526911,11.42870204,87.499,87.48,1.80609555]
[1772613532518,11.42870204,87.499,87.48,1.80617329]
[1772613532818,13.40104512,87.499,87.48,1.80617329]
[1772613534310,1.97234308,87.498,87.48,1.80617329]
[1772613534818,1.97234308,87.489,87.46,1.80617329]
[1772613535000,1.97234308,87.489,87.452,0.14216157]
[1772613535204,1.97234308,87.489,87.46,1.80617329]
[1772613535722,1.97234308,87.489,87.45,1.80617329]
[1772613536417,1.97234308,87.479,87.441,0.28432314]
[1772613536815,1.97234308,87.477,87.442,0.09]
[1772613536994,1.97234308,87.477,87.45,1.80617329]
[1772613539815,11.43170698,87.476,87.45,1.8948822]
[1772613540007,1.97234308,87.475,87.45,1.8948822]
[1772613540525,39.99588612,87.509,87.46,1.80617329]
[1772613540735,1.80617329,87.5,87.47,1.80617329]
[1772613541236,39.99588612,87.509,87.441,0.28432314]
[1772613541237,1.80617329,87.48,87.441,0.28432314]
[1772613541610,1.80617329,87.48,87.441,2.11274641]
[1772613541930,1.80617329,87.48,87.397,1.14420403]
[1772613541931,11.43131494,87.479,87.45,1.80617329]
[1772613542131,11.43131494,87.479,87.451,1.82842327]
[1772613542332,40.0096023,87.479,87.451,1.82842327]
[1772613542716,1.84189319,87.478,87.451,1.82842327]
[1772613543110,1.84189319,87.478,87.44,1.80617329]
[1772613543626,1.84189319,87.478,87.442,1.82842327]
[1772613544010,1.84189319,87.476,87.442,1.82842327]
[1772613544532,1.84189319,87.476,87.45,1.80617329]
[1772613544937,1.84189319,87.476,87.451,1.82842327]
[1772613545314,1.84189319,87.487,87.461,1.82842327]
[1772613546333,13.27216283,87.487,87.461,13.26205613]
[1772613546535,13.27216283,87.487,87.462,1.82842327]
[1772613548521,28.57215199,87.498,87.462,1.82842327]
[1772613548522,1.84189319,87.486,87.462,1.82842327]
[1772613549126,1.84189319,87.486,87.45,1.80617329]
[1772613549127,1.84189319,87.502,87.481,1.82842327]
[1772613550749,1.84189319,87.5,87.474,1.82842327]
[1772613551037,1.84189319,87.5,87.48,1.80617329]
[1772613553031,11.42870204,87.499,87.474,1.82842327]
[1772613553235,1.84189319,87.498,87.474,1.82842327]
[1772613553431,1.84189319,87.489,87.461,0.28432314]
[1772613553946,1.84189319,87.479,87.455,0.09]
[1772613554149,1.84189319,87.489,87.461,1.82842327]
[1772613554443,1.84189319,87.509,87.481,1.82842327]
[1772613554626,1.84189319,87.509,87.47,1.80617329]
[1772613555049,1.90038317,87.499,87.46,1.80617329]
[1772613555249,1.90038317,87.489,87.455,0.09]
[1772613556029,1.90038317,87.489,87.46,1.80617329]
[1772613557142,1.90038317,87.487,87.46,1.80617329]
[1772613559226,1.99302797,87.485,87.46,1.80617329]
[1772613561342,1.90038317,87.483,87.46,13.23989521]
[1772613561751,11.43013296,87.489,87.47,1.80617329]
[1772613564357,1.90038317,87.488,87.47,1.80617329]
[1772613566359,11.43026964,87.487,87.47,1.80617329]
[1772613566535,13.33065281,87.487,87.47,1.80617329]
[1772613566742,1.90038317,87.486,87.47,1.80617329]
[1772613568438,1.90038317,87.486,87.471,11.43236043]
[1772613568952,28.56914303,87.507,87.471,11.43236043]
[1772613569949,39.99680024,87.507,87.471,11.43236043]
[1772613570946,1.89360586,87.504,87.471,11.43236043]
[1772613572056,1.89360586,87.502,87.471,11.43236043]
[1772613573264,1.89360586,87.502,87.47,1.80617329]
[1772613573571,1.89360586,87.479,87.44,1.80617329]
[1772613574068,1.89360586,87.479,87.45,1.80617329]
[1772613574263,1.89360586,87.477,87.45,1.80617329]
[1772613574567,1.89360586,87.477,87.445,11.43573905]
[1772613574763,1.89360586,87.477,87.446,0.09]
[1772613575268,1.89360586,87.477,87.445,11.43573905]
[1772613575446,1.89360586,87.488,87.461,1.86638904]
[1772613575643,1.89360586,87.494,87.48,1.80617329]
[1772613576056,1.89360586,87.494,87.471,1.86638904]
[1772613576972,1.89360586,87.489,87.461,0.28432314]
[1772613577174,1.89360586,87.489,87.461,0.37432314]
[1772613577480,1.89360586,87.487,87.461,0.09]
[1772613577770,1.89360586,87.487,87.454,0.28432314]
[1772613578070,1.89360586,87.487,87.46,1.80617329]
[1772613578671,1.89360586,87.487,87.461,1.86638904]
[1772613579548,1.89360586,87.485,87.46,1.80617329]
[1772613580572,1.89360586,87.485,87.46,13.23988249]
[1772613581068,1.89360586,87.485,87.46,1.80617329]
[1772613581850,1.89360586,87.483,87.46,1.80617329]
[1772613583280,1.89360586,87.483,87.461,1.86638904]
[1772613583979,1.80617329,87.5,87.46,1.80617329]
[1772613583980,1.89360586,87.481,87.46,1.80617329]
[1772613585661,1.89360586,87.481,87.45,1.80617329]
[1772613585873,40.00914494,87.48,87.45,1.80617329]
[1772613586077,1.89360586,87.479,87.45,1.80617329]
[1772613586589,1.89360586,87.479,87.46,1.80617329]
[1772613587963,1.89360586,87.477,87.46,1.80617329]
[1772613589063,11.43170698,87.476,87.45,13.24119541]
[1772613589364,1.98125214,87.475,87.45,13.24119541]
[1772613590282,1.98125214,87.473,87.45,13.24119541]
[1772613591281,1.98125214,87.473,87.421,2.05470806]
[1772613591497,1.98125214,87.459,87.431,2.05470806]
[1772613592484,1.98125214,87.457,87.431,2.05470806]
[1772613593686,1.98125214,87.455,87.431,2.05470806]
[1772613593873,1.98125214,87.455,87.43,1.80617329]
[1772613594068,1.98125214,87.455,87.44,1.80617329]
[1772613594274,1.98125214,87.461,87.44,1.80617329]
[1772613594569,1.98125214,87.461,87.44,1.80795897]
[1772613594770,1.98125214,87.461,87.436,2.05470806]
[1772613595882,1.98125214,87.461,87.43,1.80795897]
[1772613595883,1.98125214,87.459,87.43,1.80795897]
[1772613598389,1.98125214,87.457,87.43,3.86266703]
[1772613599592,1.98125214,87.468,87.44,3.86266703]
[1772613600182,1.98125214,87.468,87.44,2.05470806]
[1772613600885,1.98125214,87.468,87.441,2.05470806]
[1772613601472,11.43000834,87.489,87.451,2.05470806]
[1772613601673,1.80795897,87.48,87.451,2.05470806]
[1772613602272,1.80795897,87.47,87.442,0.28432314]
[1772613602669,1.80795897,87.47,87.43,1.80795897]
[1772613602966,1.80795897,87.48,87.409,61.2]
[1772613602967,1.80795897,87.46,87.429,2.05470806]
[1772613603391,1.98125214,87.459,87.429,2.05470806]
[1772613604087,1.98125214,87.457,87.431,2.05470806]
[1772613604478,11.43236043,87.471,87.451,2.05470806]
[1772613605375,1.98125214,87.47,87.451,2.05470806]
[1772613605889,11.43236043,87.471,87.451,2.05470806]
[1772613606077,1.98125214,87.475,87.453,2.05470806]
[1772613606583,62.63826832,87.51,87.45,1.80795897]
[1772613606584,11.43041695,87.486,87.461,2.05470806]
[1772613606787,1.98125214,87.509,87.471,2.05470806]
[1772613606977,1.98125214,87.509,87.452,11.43484425]
[1772613606978,1.98125214,87.505,87.453,0.28432314]
[1772613607171,1.98125214,87.505,87.452,11.43484425]
[1772613607172,1.98125214,87.469,87.431,0.28432314]
[1772613607574,1.80795897,87.46,87.425,0.09]
[1772613607895,1.98125214,87.459,87.425,0.09]
[1772613608096,11.43405977,87.458,87.43,1.80795897]
[1772613608397,1.98125214,87.457,87.432,0.09]
[1772613608694,1.98125214,87.457,87.43,1.80795897]
[1772613609081,1.98125214,87.457,87.431,2.05166968]
[1772613610299,11.43432125,87.456,87.432,11.43745996]
[1772613610493,11.43432125,87.456,87.433,2.05470806]
[1772613610877,1.98125214,87.455,87.433,2.05470806]
[1772613611091,1.98125214,87.455,87.424,2.3390312]
[1772613611294,1.98125214,87.455,87.425,2.3390312]
[1772613612096,1.98125214,87.455,87.43,1.80795897]
[1772613612594,1.98125214,87.453,87.43,1.80795897]
[1772613612986,1.98125214,87.453,87.43,3.86266703]
[1772613613191,1.98125214,87.453,87.431,2.05470806]
[1772613613579,11.4339884,87.459,87.432,2.33627401]
[1772613613778,11.43333005,87.464,87.45,1.80795897]
[1772613614096,11.43222974,87.472,87.45,3.85990984]
[1772613614287,1.98125214,87.471,87.45,1.80795897]
[1772613614807,1.98125214,87.469,87.435,2.04592175]
[1772613615499,1.98125214,87.469,87.43,1.80795897]
[1772613615799,1.98125214,87.439,87.4,1.80795897]
[1772613616186,1.98125214,87.439,87.401,2.03996189]
[1772613616392,1.98125214,87.439,87.41,1.80795897]
[1772613616705,1.80795897,87.45,87.41,1.80795897]
[1772613616706,1.98125214,87.437,87.41,1.80795897]
[1772613616907,1.98125214,87.437,87.412,2.03407047]
[1772613618805,11.43618418,87.442,87.42,1.80795897]
[1772613618986,11.43618418,87.442,87.421,2.00874161]
[1772613619185,2.0942335,87.441,87.42,1.80795897]
[1772613620708,2.0942335,87.441,87.41,13.24829494]
[1772613621000,2.0942335,87.439,87.405,2.00561303]
[1772613621200,2.0942335,87.439,87.41,1.80795897]
[1772613622102,2.0942335,87.439,87.406,1.99468241]
[1772613622308,2.0942335,87.439,87.4,1.80795897]
[1772613622801,2.0942335,87.439,87.39,0.2]
[1772613622802,2.08671941,87.419,87.39,2.18931108]
[1772613622988,2.08671941,87.417,87.39,2.18931108]
[1772613623192,2.08671941,87.417,87.39,3.99727005]
[1772613623709,2.08671941,87.417,87.391,11.44282592]
[1772613623898,11.43929167,87.418,87.392,1.98400144]
[1772613624200,11.43850658,87.424,87.401,1.98400144]
[1772613624408,2.08671941,87.423,87.401,1.98400144]
[1772613624591,11.43780639,87.43,87.41,3.78671176]
[1772613624792,2.08671941,87.444,87.411,1.97875279]
[1772613624995,2.08671941,87.443,87.42,1.80795897]
[1772613626897,2.08671941,87.459,87.431,1.96843565]
[1772613627101,2.08671941,87.458,87.431,1.96843565]
[1772613627309,2.08671941,87.458,87.42,1.80795897]
[1772613627704,2.08671941,87.458,87.42,13.24693362]
[1772613628107,2.08671941,87.458,87.42,1.80795897]
[1772613628512,2.08671941,87.439,87.41,1.80795897]
[1772613629604,2.08671941,87.437,87.41,1.80795897]
[1772613631638,2.08671941,87.435,87.41,1.80795897]
[1772613632422,2.08671941,87.475,87.438,0.28432314]
[1772613632606,2.08671941,87.475,87.451,1.9388767]
[1772613633332,2.08671941,87.475,87.46,1.80795897]
[1772613633506,2.08671941,87.475,87.451,1.9388767]
[1772613633707,11.43196835,87.474,87.451,1.9388767]
[1772613633906,2.08671941,87.473,87.451,1.9388767]
[1772613634310,1.80795897,87.47,87.428,1.92947033]
[1772613634508,2.08671941,87.459,87.43,3.8274293]
[1772613634710,2.08671941,87.459,87.431,1.92947033]
[1772613636344,11.43405977,87.458,87.432,11.43745996]
[1772613636744,11.43405977,87.458,87.432,13.35773877]
[1772613636949,2.08671941,87.479,87.45,1.80795897]
[1772613637751,2.08671941,87.479,87.444,1.92027881]
[1772613638441,2.08671941,87.477,87.444,1.92027881]
[1772613638947,2.08671941,87.477,87.45,1.80795897]
[1772613639739,2.08671941,87.475,87.44,1.80795897]
[1772613639946,2.08671941,87.469,87.44,1.80795897]
[1772613640149,2.08671941,87.469,87.433,0.28432314]
[1772613640322,2.08671941,87.469,87.44,1.80795897]
[1772613641145,42.09769384,87.476,87.441,1.90252077]
[1772613641547,2.08671941,87.475,87.441,1.90252077]
[1772613641846,2.08671941,87.473,87.441,1.90252077]
[1772613642725,2.08671941,87.473,87.442,13.33009673]
[1772613642929,2.08671941,87.473,87.443,1.89394477]
[1772613643326,2.08671941,87.473,87.433,0.28432314]
[1772613643327,2.08671941,87.469,87.433,11.72164249]
[1772613643652,2.08671941,87.469,87.434,0.28432314]
[1772613644035,2.08671941,87.467,87.43,1.80795897]
[1772613644347,2.08671941,87.459,87.428,1.88973051]
[1772613644540,2.08671941,87.459,87.429,11.43785242]
[1772613644846,2.08671941,87.459,87.424,0.28432314]
[1772613645040,2.08671941,87.449,87.421,0.09]
[1772613645245,2.08671941,87.449,87.421,11.43889912]
[1772613646952,2.08671941,87.447,87.413,0.28432314]
[1772613647136,2.08671941,87.447,87.413,13.60164508]
[1772613648054,2.08671941,87.439,87.409,11.44044067]
[1772613648546,2.08671941,87.439,87.401,11.72583982]
[1772613649053,1.91600997,87.437,87.401,11.72583982]
[1772613649757,1.91600997,87.437,87.401,13.58739514]
[1772613649932,3.69383402,87.48,87.41,1.80795897]
[1772613650141,2.14121658,87.59,87.47,1.80795897]
[1772613650338,6.04,110.0,87.521,2.01386561]
[1772613650339,11.41461298,87.607,87.521,2.01386561]
[1772613650630,11.41461298,87.607,87.502,3.69383402]
[1772613650631,1.97834165,87.588,87.515,5.10909883]
[1772613650838,1.97834165,87.579,87.54,1.80795897]
[1772613651028,1.97834165,87.579,87.514,5.10909883]
[1772613651228,1.97834165,87.569,87.513,39.99405802]
[1772613651439,1.97834165,87.569,87.531,0.28432314]
[1772613651656,1.97834165,87.569,87.513,39.99405802]
[1772613651951,1.97834165,87.569,87.54,1.80795897]
[1772613652337,1.97834165,87.569,87.531,0.28432314]
[1772613652537,1.97834165,87.569,87.54,5.36756196]
[1772613653059,1.97834165,87.569,87.515,0.11435504]
[1772613653252,1.97834165,87.569,87.5,5.36756196]
[1772613653253,5.36756196,87.54,87.5,5.36756196]
[1772613653450,11.41960185,87.569,87.49,5.36756196]
[1772613653451,5.36756196,87.53,87.49,5.36756196]
[1772613653641,1.97834165,87.529,87.491,11.42974705]
[1772613653843,1.97834165,87.529,87.492,0.28432314]
[1772613654048,1.97834165,87.519,87.48,5.36756196]
[1772613654446,1.97834165,87.519,87.48,5.3751001]
[1772613655154,1.97834165,87.517,87.48,5.3751001]
[1772613655355,1.97834165,87.517,87.481,11.4310536]
[1772613656861,1.97834165,87.517,87.49,5.3751001]
[1772613657363,1.97834165,87.517,87.491,11.42974705]
[1772613657747,1.97834165,87.529,87.5,5.3751001]
[1772613658951,1.97834165,87.564,87.521,0.18094996]
[1772613659167,1.97834165,87.564,87.52,5.3751001]
[1772613659168,1.97834165,87.573,87.54,5.3751001]
[1772613659356,1.97834165,87.573,87.55,5.3751001]
[1772613659557,9.60690075,87.568,87.54,5.3751001]
[1772613659758,1.97834165,87.567,87.54,5.3751001]
[1772613660171,1.97834165,87.579,87.55,5.3751001]
[1772613660378,1.97834165,87.596,87.57,5.3751001]
[1772613660568,1.97834165,87.606,87.58,5.3751001]
[1772613660761,1.97834165,87.606,87.57,5.3751001]
[1772613660961,1.97834165,87.599,87.549,0.28432314]
[1772613661166,1.97834165,87.589,87.56,5.3751001]
[1772613661468,1.97834165,87.589,87.57,5.3751001]
[1772613661861,1.97834165,87.587,87.56,5.3751001]
[1772613662779,1.97834165,87.587,87.528,4.82477569]
[1772613662780,1.97834165,87.579,87.522,0.24698138]
[1772613662973,1.97834165,87.569,87.54,5.3751001]
[1772613663362,1.97834165,87.587,87.55,5.3751001]
[1772613664375,1.97834165,87.585,87.55,5.3751001]
[1772613664872,1.97834165,87.585,87.56,5.3751001]
[1772613665267,1.97834165,87.598,87.57,5.3751001]
[1772613665453,1.97834165,87.589,87.56,5.3751001]
[1772613665658,5.3751001,87.58,87.55,5.65942324]
[1772613665854,1.97834165,87.579,87.54,16.79840311]
[1772613666060,1.97834165,87.579,87.541,0.28432314]
[1772613666284,5.3751001,87.58,87.541,0.28432314]
[1772613666285,1.97834165,87.577,87.541,0.28432314]
[1772613666778,1.97834165,87.577,87.543,0.28432314]
[1772613666972,1.97834165,87.577,87.543,0.37432314]
[1772613667687,1.97834165,87.577,87.543,0.28432314]
[1772613667985,1.97834165,87.569,87.54,5.3751001]
[1772613668869,1.97834165,87.567,87.54,5.3751001]
[1772613670476,1.97834165,87.567,87.523,61.43805712]
[1772613670477,1.97834165,87.549,87.523,61.43805712]
[1772613671078,1.97834165,87.559,87.53,5.3751001]
[1772613671261,1.97834165,87.579,87.543,0.28432314]
[1772613671462,11.41708909,87.588,87.56,5.3751001]
[1772613671691,11.41644947,87.593,87.57,5.3751001]
[1772613671893,11.41373504,87.614,87.581,0.38485416]
[1772613672065,1.02295546,87.648,87.6,5.3751001]
[1772613672066,1e-08,87.608,87.6,5.3751001]
[1772613672266,1e-08,87.648,87.612,0.39930712]
[1772613672481,1e-08,87.648,87.614,0.39930712]
[1772613672683,1e-08,87.648,87.621,0.28432314]
[1772613672879,13.38787545,87.646,87.621,0.28432314]
[1772613673096,13.38787545,87.646,87.619,0.28432314]
[1772613673400,1e-08,87.648,87.64,5.3751001]
[1772613673589,1e-08,87.648,87.641,0.28432314]
[1772613673793,1.97834165,87.673,87.641,0.28432314]
[1772613674001,0.1,87.7,87.664,0.41359408]
[1772613674202,1.97834165,87.698,87.659,0.28432314]
[1772613674498,1.97834165,87.698,87.661,0.28432314]
[1772613674699,7.35344175,87.69,87.661,0.28432314]
[1772613674888,1.97834165,87.669,87.629,0.42771694]
[1772613675083,1.97834165,87.669,87.634,0.28432314]
[1772613675404,5.3751001,87.69,87.661,0.28432314]
[1772613675592,11.40296328,87.697,87.667,0.28432314]
[1772613675894,7.35344175,87.69,87.655,0.44167759]
[1772613676096,1.97834165,87.689,87.651,0.28432314]
[1772613677000,13.38241062,87.688,87.649,0.28432314]
[1772613677200,1.97834165,87.679,87.651,0.28432314]
[1772613677498,1.97834165,87.679,87.632,81.30690559]
[1772613677499,5.3751001,87.66,87.636,0.09]
[1772613678191,1.97834165,87.669,87.633,11.41122636]
[1772613678400,1.97834165,87.669,87.632,78.09567633]
[1772613678401,1.97834165,87.669,87.632,89.02438926]
[1772613678700,13.47876026,87.694,87.661,0.49593497]
[1772613678881,2.07542186,87.693,87.67,5.3751001]
[1772613679081,13.47897064,87.692,87.662,0.28432314]
[1772613679378,13.47897064,87.692,87.661,0.28432314]
[1772613679783,2.07542186,87.689,87.66,5.3751001]
[1772613679988,5.3751001,87.67,87.651,0.28432314]
[1772613680187,2.07542186,87.679,87.651,0.28432314]
[1772613680585,2.07542186,87.679,87.642,0.28432314]
[1772613681097,16.77890897,87.69,87.66,5.3751001]
[1772613681294,2.16491758,87.689,87.661,0.28432314]
[1772613681793,30.66201237,87.729,87.681,0.54774217]
[1772613681990,30.66201237,87.729,87.652,11.40875279]
[1772613681991,2.16491758,87.719,87.665,4.82477569]
[1772613682197,5.3751001,87.71,87.681,0.28432314]
[1772613682505,2.16491758,87.719,87.681,0.28432314]
[1772613683004,2.16491758,87.71,87.681,0.28432314]
[1772613683306,2.16491758,87.719,87.681,0.28432314]
[1772613683508,5.3751001,87.71,87.681,0.28432314]
[1772613683805,2.16491758,87.718,87.691,0.28432314]
[1772613684009,2.16491758,87.709,87.68,5.3751001]
[1772613684229,2.16491758,87.718,87.69,5.3751001]
[1772613684503,45.57138482,87.775,87.672,11.40606427]
[1772613684504,11.39799262,87.735,87.71,5.3751001]
[1772613684707,5.3751001,87.73,87.701,0.28432314]
[1772613684905,11.39834951,87.732,87.701,0.28432314]
[1772613685118,5.3751001,87.73,87.701,0.28432314]
[1772613685289,5.3751001,87.73,87.7,5.3751001]
[1772613685290,2.16491758,87.729,87.695,0.28432314]
[1772613685490,5.3751001,87.72,87.695,0.28432314]
[1772613685685,5.3751001,87.71,87.68,5.3751001]
[1772613686305,1e-08,87.733,87.7,5.3751001]
[1772613686611,1e-08,87.733,87.71,5.3751001]
[1772613687002,1e-08,87.733,87.72,5.3751001]
[1772613687308,1e-08,87.733,87.7,5.3751001]
[1772613687488,5.3751001,87.73,87.7,5.3751001]
[1772613687804,1e-08,87.733,87.701,0.28432314]
[1772613688035,5.3751001,87.72,87.701,0.28432314]
[1772613688321,5.3751001,87.71,87.68,5.3751001]
[1772613688526,2.27694657,87.699,87.66,5.3751001]
[1772613688724,5.3751001,87.7,87.6,51.03687656]
[1772613688725,5.3751001,87.67,87.632,0.03611722]
[1772613689031,5.3751001,87.68,87.64,5.3751001]
[1772613689208,2.27694657,87.681,87.65,5.3751001]
[1772613689616,5.3751001,87.66,87.63,5.3751001]
[1772613690205,5.3751001,87.67,87.641,0.04796167]
[1772613690426,5.3751001,87.73,87.665,2.05160206]
[1772613690725,5.3751001,87.75,87.705,0.28432314]
[1772613691026,16.77242436,87.74,87.71,5.3751001]
[1772613691224,0.1,87.78,87.722,2.05160206]
[1772613691430,0.1,87.78,87.741,5.10909883]
[1772613691606,5.4751001,87.78,87.741,0.28432314]
[1772613691801,5.3751001,87.76,87.73,5.3751001]
[1772613692126,5.3751001,87.76,87.721,11.39977884]
[1772613692316,5.3751001,87.75,87.716,0.28432314]
[1772613692624,2.16491758,87.74,87.71,5.3751001]
[1772613692817,2.16491758,87.749,87.712,0.28432314]
[1772613693220,11.39627114,87.748,87.714,0.28432314]
[1772613693529,5.3751001,87.74,87.711,11.40107854]
[1772613693727,5.3751001,87.73,87.7,7.42670216]
[1772613694030,5.3751001,87.73,87.701,11.40237853]
[1772613694326,2.16491758,87.731,87.69,5.3751001]
[1772613694520,5.3751001,87.72,87.69,5.3751001]
[1772613694719,2.16491758,87.747,87.7,5.3751001]
[1772613694922,5.3751001,87.73,87.7,5.3751001]
[1772613695116,5.3751001,87.72,87.689,2.05160206]
[1772613695315,2.16491758,87.729,87.693,2.05160206]
[1772613695527,2.16491758,87.729,87.694,0.28432314]
[1772613695717,2.16491758,87.727,87.694,0.28432314]
[1772613696031,2.16491758,87.727,87.7,5.3751001]
[1772613696205,7.54001768,87.74,87.701,2.05160206]
[1772613696410,5.3751001,87.73,87.7,5.3751001]
[1772613696831,2.16491758,87.738,87.701,0.28432314]
[1772613697034,2.16491758,87.738,87.71,5.3751001]
[1772613697217,28.48917145,87.753,87.691,39.91281149]
[1772613697218,2.16491758,87.749,87.72,5.3751001]
[1772613697744,2.16491758,87.749,87.713,0.28432314]
[1772613697957,2.16491758,87.789,87.715,0.28432314]
[1772613698244,2.16491758,87.789,87.751,2.3359252]
[1772613698446,5.3751001,87.78,87.751,2.05160206]
[1772613698626,2.16491758,87.789,87.76,5.3751001]
[1772613698929,2.16491758,87.789,87.754,2.05160206]
[1772613699133,2.16491758,87.789,87.76,5.3751001]
[1772613700028,2.16491758,87.789,87.726,3.69383402]
[1772613700029,5.3751001,87.78,87.75,5.3751001]
[1772613700227,2.16491758,87.79,87.76,5.3751001]
[1772613700429,5.3751001,87.8,87.761,2.05160206]
[1772613700638,5.3751001,87.79,87.761,2.05160206]
[1772613700947,39.84290511,87.845,87.741,0.28432314]
[1772613700948,5.3751001,87.77,87.741,0.28432314]
[1772613701252,5.3751001,87.76,87.73,5.3751001]
[1772613701441,2.16491758,87.769,87.73,5.3751001]
[1772613701752,2.16491758,87.769,87.731,0.14216157]
[1772613702114,2.16491758,87.769,87.731,11.68280258]
[1772613702445,2.16491758,87.769,87.74,5.3751001]
[1772613702613,2.16491758,87.769,87.731,11.68280258]
[1772613702614,7.54001768,87.76,87.731,11.39847944]
[1772613702815,2.16491758,87.759,87.731,11.39847944]
[1772613703034,7.54001768,87.77,87.731,11.39847944]
[1772613703233,2.16491758,87.769,87.74,5.3751001]
[1772613704275,2.16491758,87.759,87.73,5.3751001]
[1772613704567,2.16491758,87.749,87.71,5.3751001]
[1772613704737,2.16491758,87.749,87.689,3.69383402]
[1772613704738,5.3751001,87.76,87.721,2.05160206]
[1772613705165,5.3751001,87.75,87.721,2.05160206]
[1772613705841,5.3751001,87.77,87.74,5.3751001]
[1772613706050,2.16491758,87.771,87.74,5.3751001]
[1772613706246,2.16491758,87.768,87.735,2.05160206]
[1772613706754,2.16491758,87.739,87.693,2.05160206]
[1772613706941,2.16491758,87.739,87.701,0.14216157]
[1772613707261,7.54001768,87.73,87.693,2.05160206]
[1772613707834,2.16491758,87.729,87.693,2.05160206]
[1772613708045,2.16491758,87.719,87.69,5.3751001]
[1772613708241,2.16491758,87.719,87.684,11.4045892]
[1772613708445,5.3751001,87.72,87.659,56.16477569]
[1772613708446,2.27814568,87.717,87.673,2.30820642]
[1772613708659,2.27814568,87.709,87.68,5.3751001]
[1772613709149,62.35545717,87.75,87.666,28.51732712]
[1772613709150,2.27814568,87.729,87.7,5.3751001]
[1772613710168,2.27814568,87.729,87.69,5.3751001]
[1772613710459,2.27814568,87.729,87.7,5.3751001]
[1772613710670,2.27814568,87.727,87.691,39.91287588]
[1772613711051,5.3751001,87.75,87.691,39.91287588]
[1772613711052,56.93900742,87.814,87.72,5.3751001]
[1772613711378,5.3751001,87.78,87.74,5.3751001]
[1772613711572,5.3751001,87.77,87.74,5.3751001]
[1772613711775,5.3751001,87.78,87.75,5.3751001]
[1772613712071,5.3751001,87.8,87.741,2.30820642]
[1772613712263,5.3751001,87.77,87.742,11.39705044]
[1772613712658,11.39354441,87.769,87.741,2.30820642]
[1772613713888,5.3751001,87.76,87.737,11.39766625]
[1772613714085,11.39354441,87.769,87.737,11.39766625]
[1772613714255,11.39354441,87.769,87.739,11.39744013]
[1772613714574,11.39354441,87.769,87.738,2.30820642]
[1772613714879,5.3751001,87.76,87.738,2.30820642]
[1772613715381,5.3751001,87.76,87.729,11.39862502]
[1772613715788,5.3751001,87.76,87.731,2.30820642]
[1772613716581,5.34479918,87.76,87.732,11.39834951]
[1772613716957,5.34479918,87.75,87.726,11.3990749]
[1772613717881,5.34479918,87.74,87.716,2.30820642]
[1772613718092,5.34479918,87.75,87.716,2.30820642]
[1772613718676,5.34479918,87.75,87.717,11.40029868]
[1772613718677,7.62294486,87.75,87.717,11.40029868]
[1772613718873,7.62294486,87.75,87.717,13.7085051]
[1772613719084,5.34479918,87.75,87.721,2.30820642]
[1772613719988,2.27814568,87.76,87.721,2.30820642]
[1772613719989,5.34479918,87.76,87.721,2.30820642]
[1772613720189,5.34479918,87.76,87.73,5.34479918]
[1772613720382,5.34479918,87.76,87.731,2.30820642]
[1772613720581,5.34479918,87.75,87.721,2.30820642]
[1772613720776,5.34479918,87.75,87.721,13.70797961]
[1772613721095,5.34479918,87.75,87.722,2.30820642]
[1772613721295,2.27814568,87.771,87.722,2.30820642]
[1772613721499,5.34479918,87.77,87.731,2.30820642]
[1772613721712,5.34479918,87.78,87.741,2.30820642]
[1772613722090,5.34479918,87.78,87.751,2.30820642]
[1772613722608,5.34479918,87.78,87.752,11.39575166]
[1772613722778,5.34479918,87.79,87.753,2.30820642]
[1772613723801,7.62294486,87.79,87.753,2.30820642]
[1772613723979,5.34479918,87.78,87.753,2.30820642]
[1772613724378,5.34479918,87.78,87.752,11.39575166]
[1772613724379,5.34479918,87.77,87.749,2.30820642]
[1772613724599,5.34479918,87.78,87.751,2.30820642]
[1772613724796,5.34479918,87.78,87.75,5.34479918]
[1772613724797,5.34479918,87.79,87.753,2.30820642]
[1772613725901,5.34479918,87.79,87.753,2.19291642]
[1772613726386,5.34479918,87.78,87.753,2.19291642]
[1772613726800,5.34479918,87.78,87.754,11.39549194]
[1772613727098,2.27814568,87.79,87.76,5.34479918]
[1772613727099,5.34479918,87.79,87.76,5.34479918]
[1772613727289,11.3888002,87.806,87.77,5.34479918]
[1772613727680,2.27814568,87.812,87.78,5.34479918]
[1772613727883,5.34479918,87.79,87.755,2.30820642]
[1772613728099,2.27814568,87.789,87.755,2.30820642]
[1772613728298,5.34479918,87.78,87.755,2.30820642]
[1772613728694,5.34479918,87.79,87.761,2.30820642]
[1772613729017,5.34479918,87.79,87.763,2.30820642]
[1772613729185,5.34479918,87.8,87.771,2.30820642]
[1772613729595,2.27814568,87.804,87.771,2.30820642]
[1772613729808,5.34479918,87.81,87.771,2.30820642]
[1772613731088,5.34479918,87.81,87.781,2.30820642]
[1772613732499,5.34479918,87.82,87.781,2.30820642]